Cogmind - Beta 9.3 @@@ ROGUE MODE // 2020.01.06 @ 11:38:08 Player: Klin Result: Self-destructed Performance ------------- Evolutions (2) 1000 Regions Visited (5) 1000 Robots Destroyed (28) 140 Value Destroyed (694) 694 Prototype IDs (2) 40 Alien Tech Used (0) 0 Bonus (0) 0 TOTAL SCORE: 2874 Bonus ------- None Cogmind --------- Core Integrity 439/550 Matter 250/300 Energy 100/100 System Corruption 0% Temperature Cool (0) Movement Core (550) Ox10 Location -8/Materials Parts ------- > --- POWER (1) -------- (None) > --- PROPULSION (4) --- (None) > --- UTILITY (4) ------ Large Storage Unit Large Storage Unit Seismic Analyzer Tractor Beam > --- WEAPON (2) ------- (None) > --- INVENTORY (16) --- Ion Engine Small Storage Unit Medium Storage Unit Medium Storage Unit Targeting Computer Weapon Shielding Weapon Shielding Peak State ------------ > --- POWER ------------ Reinforced Ion Engine > --- PROPULSION ------- Improved Aluminum Leg Improved Aluminum Leg > --- UTILITY ---------- Large Storage Unit Large Storage Unit Sensor Array Seismic Analyzer > --- WEAPON ----------- Small Laser Grenade Launcher > --- INVENTORY -------- Ion Engine Aluminum Leg Aluminum Leg Cesium-ion Thruster Cesium-ion Thruster Small Storage Unit Medium Storage Unit Medium Storage Unit Targeting Computer Weapon Shielding Weapon Shielding Tractor Beam EM Pulse Gun Medium Laser Battle Cannon Grenade Launcher [Rating: 14] Favorites ----------- Power Reinforced Ion Engine Engine Reinforced Ion Engine Propulsion Aluminum Leg Leg Aluminum Leg Flight Unit Cesium-ion Thruster Utility Large Storage Unit Device Sensor Array Storage Large Storage Unit Processor Seismic Analyzer Weapon Small Laser Energy Gun Small Laser Ballistic Cannon Battle Cannon Launcher Grenade Launcher Build | -11 -10 -10 -9 -9 -8 ------- Run | Scr Mat Min Mat Min Mat Slots Evolved 4 | . . . 2 . 2 Power . | . . . . . . Propulsion 2 | . . . . . 2 Utility 2 | . . . 2 . . Weapon . | . . . . . . Parts Attached 27 | 5 5 . 4 11 2 Power 2 | . . . . 2 . Engine 2 | . . . . 2 . Core . | . . . . . . Reactor . | . . . . . . Propulsion 8 | 2 . . 2 2 2 Treads . | . . . . . . Leg 6 | 2 . . 2 2 . Wheel . | . . . . . . Hover . | . . . . . . Flight 2 | . . . . . 2 Utility 6 | 1 2 . 2 1 . Device 2 | . . . 1 1 . Storage 3 | 1 2 . . . . Processor 1 | . . . 1 . . Hackware . | . . . . . . Protection . | . . . . . . Artifact . | . . . . . . Weapon 11 | 2 3 . . 6 . Energy Gun 5 | 2 1 . . 2 . Energy Cannon . | . . . . . . Ballistic Gun . | . . . . . . Ballistic Cannon 2 | . . . . 2 . Launcher 4 | . 2 . . 2 . Special Weapon . | . . . . . . Impact Weapon . | . . . . . . Slashing Weapon . | . . . . . . Piercing Weapon . | . . . . . . Special Melee Weapon . | . . . . . . Unidentified Prototypes . | . . . . . . Parts Lost 13 | . . . . 11 2 Power 1 | . . . . 1 . Propulsion 4 | . . . . 3 1 Utility 1 | . . . . 1 . Weapon 7 | . . . . 6 1 Highest Loss Streak 4 | . . . . 4 2 Average Slot Usage (%) 85 | . 85 85 88 88 48 Engine 4 | . . . . 10 . Leg 23 | . 28 28 22 19 5 Device 3 | . . . 11 5 9 Storage 24 | . 28 28 22 22 18 Processor 5 | . . . 11 11 9 Energy Gun 9 | . 15 14 11 4 5 Ballistic Cannon 2 | . . . . 6 . Launcher 11 | . 12 14 11 8 . Naked Turns . | . . . . . . Heaviest Build 50 | 7 38 36 37 50 35 Greatest Support 26 | 20 20 20 26 26 10 Greatest Overweight (x) 11 | . 1 1 1 4 11 Average Overweight (x) 1 | . . 1 1 1 5 Largest Inventory Capacity 16 | 6 16 16 16 16 16 Average Capacity 15 | 5 15 16 16 16 16 Most Carried 16 | 4 10 12 15 16 9 Average Carried 11 | . 7 11 12 13 7 Final Capacity 16 | 6 16 16 16 16 16 Final Carried 15 | . 10 12 15 9 7 Class Distribution -------------------- 100% | Mutant Dominant Class ---------------- Mutant | -10/Materials Mutant | -10/Mines Mutant | -9/Materials Mutant | -9/Mines Mutant | -8/Materials Resources | -11 -10 -10 -9 -9 -8 ----------- Run | Scr Mat Min Mat Min Mat Matter Collected 837 | 166 131 125 8 407 . Remotely . | . . . . . . Salvage Created 536 | . 193 143 58 142 . Parts 44 | . 14 14 4 12 . Haulers Intercepted . | . . . . . . Recyclers Shooed 1 | . 1 . . . . Parts Field Recycled . | . . . . . . Retrieved Matter . | . . . . . . Parts Self-Destructed . | . . . . . . Prevented . | . . . . . . Kills | -11 -10 -10 -9 -9 -8 ------- Run | Scr Mat Min Mat Min Mat Combat Hostiles Destroyed 22 | . 4 7 2 9 . Guns 3 | . . 2 1 . . Cannons 6 | . . . . 6 . AOE 13 | . 4 5 1 3 . Classes Destroyed 9 | . 4 3 1 1 . Worker 1 | . 1 . . . . Builder 2 | . . 1 . 1 . Tunneler 1 | . . 1 . . . Recycler 1 | . 1 . . . . Watcher 1 | . 1 . . . . Swarmer 7 | . . 3 . 4 . Grunt 13 | . 4 4 1 4 . Brawler 1 | . . . . 1 . Duelist 1 | . . . 1 . . Best Kill Streak 4 | . 3 4 2 4 . Combat Bots Only 4 | . 2 3 2 4 . Max Kills in Single Turn 2 | . 2 2 1 1 . Gunslinging . | . . . . . . Exploded 2 | . 2 2 1 1 . Melee . | . . . . . . Uniques/NPCs Destroyed . | . . . . . . Combat | -11 -10 -10 -9 -9 -8 -------- Run | Scr Mat Min Mat Min Mat Damage Taken 1672 | . 162 153 21 1144 192 Core 488 | . 36 33 . 308 111 Absorbed by Shields . | . . . . . . Core Remaining (%) 65 | 100 . 72 . 23 . Volleys Fired 69 | . 8 9 4 48 . Largest 2 | . 2 2 2 2 . Hottest 89 | . 70 70 70 89 . Shots Fired 98 | . 16 18 8 56 . Gun 37 | . 6 9 4 18 . Cannon 26 | . . . . 26 . Launcher 35 | . 10 9 4 12 . Special . | . . . . . . Kinetic 26 | . . . . 26 . Thermal 33 | . 6 9 4 14 . Explosive 35 | . 10 9 4 12 . Electromagnetic 4 | . . . . 4 . Robot Hit Streak 14 | . 9 5 9 14 . Robot Miss Streak 3 | . 1 2 . 3 . Penetration Max . | . . . . . . Secondary Targets . | . . . . . . Shots Hit Robots 59 | . 10 9 5 35 . Core Hits 48 | . 10 16 3 19 . Critical Hits 1 | . . . . 1 . Critical Kills . | . . . . . . Critical Parts Destroyed 1 | . . . . 1 . Melee Attacks . | . . . . . . Impact . | . . . . . . Slashing . | . . . . . . Piercing . | . . . . . . Sneak Attacks . | . . . . . . Combat Hostiles . | . . . . . . Follow-up Attacks . | . . . . . . Damage Inflicted 2285 | . 503 484 203 1095 . Guns 309 | . 58 67 31 153 . Cannons 356 | . . . . 356 . Explosions 1613 | . 445 417 172 579 . Melee . | . . . . . . Ramming 7 | . . . . 7 . Kinetic 356 | . . . . 356 . Thermal 287 | . 58 67 31 131 . Explosive 1613 | . 445 417 172 579 . Electromagnetic 22 | . . . . 22 . Impact . | . . . . . . Slashing . | . . . . . . Piercing . | . . . . . . Highest Corruption 4 | . . . . 4 . Average Corruption 2 | . . . . 2 . Corruption Purged . | . . . . . . Effects 6 | . . . . 6 . Message Errors 3 | . . . . 3 . Heat Flow Errors 3 | . . . . 3 . Overload Shots . | . . . . . . Overflow Damage 84 | . 41 . 8 35 . Projectiles . | . . . . . . Explosions 84 | . 41 . 8 35 . Melee . | . . . . . . Knockbacks 3 | . . . . 3 . Impact . | . . . . . . Kinetic 2 | . . . . 2 . Secondary 1 | . . . . 1 . Self-Inflicted Damage 196 | . 27 12 . 157 . Shots 11 | . 2 1 . 8 . Rammed 2 | . . . . 2 . Targets Rammed 2 | . . . . 2 . Kicked . | . . . . . . Crushed . | . . . . . . Highest Temperature 218 | . 33 17 1 218 . Average Temperature 58 | . 19 9 1 69 . Received Heat Transfer 426 | . 81 60 12 273 . Siege Activations . | . . . . . . Robots Corrupted . | . . . . . . Combat Hostiles . | . . . . . . Parts Fried . | . . . . . . Impact Corruptions . | . . . . . . Robots Melted . | . . . . . . Combat Hostiles . | . . . . . . Parts Melted . | . . . . . . Heat Transferred 721 | . 125 150 75 371 . Parts Sabotaged . | . . . . . . Parts Stolen . | . . . . . . Parts Stripped . | . . . . . . Power Chain Reactions . | . . . . . . Missiles Intercepted . | . . . . . . Alert | -11 -10 -10 -9 -9 -8 ------- Run | Scr Mat Min Mat Min Mat Peak Influence 162 | . 162 138 80 120 . Average Influence 65 | . 64 110 52 35 . Maximum Alert Level . | . . . . . . Low Security (%) 100 | 100 100 100 100 100 100 Level 1 . | . . . . . . Level 2 . | . . . . . . Level 3 . | . . . . . . Level 4 . | . . . . . . Level 5 . | . . . . . . High Security . | . . . . . . Max Security . | . . . . . . Squads Dispatched 4 | . 2 . 1 1 . Investigation 2 | . 2 . . . . Extermination . | . . . . . . Reinforcement 2 | . . . 1 1 . Assault . | . . . . . . Garrison . | . . . . . . Intercept . | . . . . . . Construction Impeded 1 | . . . . 1 . Haulers Reinforced . | . . . . . . Stealth | -11 -10 -10 -9 -9 -8 --------- Run | Scr Mat Min Mat Min Mat Distress Signals 2 | . . . 1 . 1 Communications Jammed . | . . . . . . Distress Signals . | . . . . . . Times Spotted 32 | . 5 7 3 15 2 Peak Tracking Total 4 | . 3 2 1 4 2 Tactical Retreats 2 | . . . . 2 . Traps | -11 -10 -10 -9 -9 -8 ------- Run | Scr Mat Min Mat Min Mat Traps Triggered 1 | . 1 . . . . Indirectly . | . . . . . . Trap Hack Attempts . | . . . . . . Triggered . | . . . . . . Disarmed . | . . . . . . Reprogrammed . | . . . . . . Reused . | . . . . . . Traps Extracted . | . . . . . . Installed . | . . . . . . Triggered . | . . . . . . Machines | -11 -10 -10 -9 -9 -8 ---------- Run | Scr Mat Min Mat Min Mat Machines Disabled 2 | . . 1 1 . . Max in Single Turn 1 | . . 1 1 . . Machines Sabotaged . | . . . . . . Garrisons Compromised . | . . . . . . Overloaded Fab Kills . | . . . . . . Fab Network Shutdowns . | . . . . . . Hacking | -11 -10 -10 -9 -9 -8 --------- Run | Scr Mat Min Mat Min Mat Machines Accessed 2 | . 1 . 1 . . Terminals 2 | . 1 . 1 . . Fabricators . | . . . . . . Repair Stations . | . . . . . . Recycling Units . | . . . . . . Scanalyzers . | . . . . . . Garrison Access . | . . . . . . Total Hacks 9 | . 6 . 3 . . Successful 6 | . 3 . 3 . . Failed 3 | . 3 . . . . Catastrophic 1 | . 1 . . . . Database Lockouts . | . . . . . . Manual . | . . . . . . Terminals 9 | . 6 . 3 . . Fabricators . | . . . . . . Repair Stations . | . . . . . . Recycling Units . | . . . . . . Scanalyzers . | . . . . . . Garrison Access . | . . . . . . Terminal Hacks 6 | . 3 . 3 . . Record 3 | . 2 . 1 . . Prototype ID Bank 1 | . . . 1 . . Branch Access Points 1 | . 1 . . . . Dispatch Records 1 | . . . 1 . . Fabricator Hacks . | . . . . . . Repair Station Hacks . | . . . . . . Recycling Unit Hacks . | . . . . . . Scanalyzer . | . . . . . . Garrison Access Hacks . | . . . . . . Unauthorized Hacks . | . . . . . . Terminals . | . . . . . . Fabricators . | . . . . . . Repair Stations . | . . . . . . Recycling Units . | . . . . . . Scanalyzers . | . . . . . . Garrison Access . | . . . . . . Data Cores Recovered . | . . . . . . Used . | . . . . . . Hacking Detections 2 | . 1 . 1 . . Full Trace Events 1 | . 1 . . . . Feedback Events . | . . . . . . Feedback Blocked . | . . . . . . Robot Schematics Acquired . | . . . . . . Robots Built . | . . . . . . Matter . | . . . . . . Time . | . . . . . . Total Robot Build Rating . | . . . . . . Part Schematics Acquired . | . . . . . . Parts Built . | . . . . . . Matter . | . . . . . . Time . | . . . . . . Total Part Build Rating . | . . . . . . Parts Repaired . | . . . . . . Time . | . . . . . . Parts Recycled . | . . . . . . Recycled Matter . | . . . . . . Retrieved Matter . | . . . . . . Retrieved Components . | . . . . . . Parts Scanalyzed . | . . . . . . Part Schematics Acquired . | . . . . . . Parts Damaged . | . . . . . . Bothacking | -11 -10 -10 -9 -9 -8 ------------ Run | Scr Mat Min Mat Min Mat Used RIF Installer . | . . . . . . Robots Hacked . | . . . . . . Non-combat . | . . . . . . Combat . | . . . . . . Robot Hacks Applied . | . . . . . . Relay Couplers Released . | . . . . . . Robots Rewired . | . . . . . . Allies Hacked . | . . . . . . Hacks Repelled . | . . . . . . Allies | -11 -10 -10 -9 -9 -8 -------- Run | Scr Mat Min Mat Min Mat Total Allies . | . . . . . . Largest Group . | . . . . . . Highest-Rated Group . | . . . . . . Highest-Rated Ally . | . . . . . . Total Orders . | . . . . . . Ally Attacks . | . . . . . . Total Damage . | . . . . . . Kills . | . . . . . . Allies Corrupted . | . . . . . . Allies Melted . | . . . . . . Intel | -11 -10 -10 -9 -9 -8 ------- Run | Scr Mat Min Mat Min Mat Robot Analysis Total . | . . . . . . Derelict Logs Recovered 4 | . . 2 . 2 . Drone Launches . | . . . . . . Drone Recoveries . | . . . . . . Exploration | -11 -10 -10 -9 -9 -8 ------------- Run | Scr Mat Min Mat Min Mat Turns Passed 2397 | 39 307 840 264 897 50 Spaces Moved 1345 | 30 175 533 162 431 14 Core 14 | 9 . . . . 5 Treads . | . . . . . . Legs 1331 | 21 175 533 162 431 9 Wheels . | . . . . . . Hover . | . . . . . . Flight . | . . . . . . Fastest Speed 50 | 50 120 150 150 150 210 Average Speed 159 | 99 148 150 150 177 335 Slowest Speed 600 | 120 150 150 150 240 600 Overloaded Moves . | . . . . . . Propulsion Burnouts . | . . . . . . Robots Hopped . | . . . . . . Cave-ins Triggered . | . . . . . . Exploration Rate (%) 37 | 3 36 91 18 72 2 Regions Visited 5 Branch Regions 2 Pre-discovered Areas 3 | . . 1 . 2 . Known Exits Taken 1 | . 1 . . . . Unknown Exits Taken 4 | 1 . 1 1 1 . Scrap Searched 4 | . . 1 . 3 . Spaces Dug . | . . . . . . Terrain Destroyed 224 | . 44 62 16 102 . Melee . | . . . . . . Projectile 1 | . . . . 1 . AOE 223 | . 44 62 16 101 . Actions | -11 -10 -10 -9 -9 -8 --------- Run | Scr Mat Min Mat Min Mat Total 1494 | 39 203 556 174 504 18 Wait 28 | . 5 13 . 10 . Move 1340 | 29 174 532 161 430 14 Hop . | . . . . . . Pick Up 26 | 5 11 2 5 3 . Fast Attach . | . . . . . . Attach 19 | 5 1 . 2 9 2 Detach . | . . . . . . Swap 8 | . 4 . 2 2 . Drop 2 | . . . . . 2 Fire 69 | . 8 9 4 48 . Melee . | . . . . . . Ram . | . . . . . . Kick 2 | . . . . 2 . Crush . | . . . . . . Escape Stasis . | . . . . . . Rewire . | . . . . . . Trap . | . . . . . . Miscellaneous . | . . . . . . Route ------- -11/Scrapyard -10/Materials -10/Mines (discovered 2 exits: *Mat x2) -9/Materials -9/Mines (discovered 3 exits: [*Mat x2] / [*Zio]) -8/Materials History --------- Turn | Location | Event 4 | -11/Scrapyard | Discovered new exit (range 16) 40 | -11/Scrapyard | Entered Materials 221 | -10/Materials | Identified exit to Mines 314 | -10/Materials | Build established: Mutant 347 | -10/Materials | Entered Mines 470 | -10/Mines | Discovered new exit (range 6) 555 | -10/Mines | Learned 2 Materials zone layouts 695 | -10/Mines | A weapon hastily lodged in a ceiling crevice suddenly fell to the ground 742 | -10/Mines | Learned location of Zion (-7) 808 | -10/Mines | Discovered new exit (range 5) 1187 | -10/Mines | Entered Materials 1187 | -9/Materials | Evolved 2 slots: Utility x2 1405 | -9/Materials | Met 8R-AWN 1425 | -9/Materials | Discovered new exit (range 7) 1451 | -9/Materials | Entered Mines 1453 | -9/Mines | Followed 8R-AWN into the Mines 1472 | -9/Mines | Discovered new exit (range 13) 1489 | -9/Mines | A Derelict revealed a hidden shortcut to a safe place 1538 | -9/Mines | Received a Rocket Launcher from a helpful Derelict 1579 | -9/Mines | Learned location of Storage (-7) 1705 | -9/Mines | Lost 4 parts (1n3w) 2202 | -9/Mines | Learned Materials garrison access intel 2312 | -9/Mines | Discovered new exit (range 10) 2332 | -9/Mines | Core integrity fell below 50% 2348 | -9/Mines | Entered Materials 2348 | -8/Materials | Evolved 2 slots: Propulsion x2 2349 | -8/Materials | Loaded intel: 1 garrison access location 2364 | -8/Materials | Lost 3 parts (1p1n1w) 2398 | -8/Materials | Self-destructed Last Messages --------------- Rnf. Ion Engine destroyed. Battle Cannon destroyed. Slammed into L-31 Rogue. Destabilizing: System corrupted (+2). Slammed into G-34 Mercenary. Destabilizing: System interference. EM Pulse Gun temporarily disabled. PARAMETERS=PROPULSION_2 LOCATION=UNKNOWN GOAL=ESCAPE Loading Materials garrison access intel (x1)... W-25 Informer sends out distress signal. Dropped Cesium-ion Thruster. Penetrated by Slug. EM Pulse Gun destroyed. Slug penetrates Wall. Penetrated by Slug. Aluminum Leg destroyed. Penetrated by Slug. R-06 Scavenger collects Cesium-ion Thruster. Map ----- +----------------------------------------------------+ | ?????????????????????????????????????????????????? | | ?????????????????????????????????????????????????? | | ?????????????????????????????????????????????????? | | ?????????????????????????????????????????????????? | | ?????????????????????????????????????????????????? | | ?????????????????????????????????????????????????? | | ?????????????????????????????????????????????????? | | ?????????????????????????????????????????????????? | | ?????????????????????????????????????????????????? | | ?????????????????????????????????????????????????? | | ?????????????????????????????????????????????????? | | ?????????????????????????????????????????????????? | | ?????????????????????????????????????????????????? | | ?????????????????????????????????????????????????? | | ?????????????????????????????????????????????????? | | ?????????????????????????????????????????????????? | | ?????????????????????????????????????????????????? | | ?????????????????????????????????????????????????? | | ?????????????????????????????????????????????????? | | ???????????#?????????????????????????????????????? | | ???????????# ????????????????????????????????????? | | ???????????# ???????????????????????????????????? | | ???????????# ###############???????????????????? | | ?????????### #???????????????????? | | ???????+ h #???????????????????? | | ???????????# @ #???????????????????? | | ?????????????##+###r =#### #???????????????????? | | ??????????????????# #??? #???????????????????? | | ??????????????????# #???? #???????????????????? | | ??????????????????# #???? #???????????????????? | | ??????????????????# #????? #???????????????????? | | ??????????????????# #????? ???????????????????? | | ??????????????????# #?????? ??????????????????? | | ??????????????????# #?????? ?????????????????? | | ??????????????????# #??????? ?????????????????? | | ??????????????????# #??????? ????????????????? | | ??????????????????# #???????? ???????????????? | | ??????????????????#####???????? ???????????????? | | ????????????????????????????????#????????????????? | | ?????????????????????????????????????????????????? | | ?????????????????????????????????????????????????? | | ?????????????????????????????????????????????????? | | ?????????????????????????????????????????????????? | | ?????????????????????????????????????????????????? | | ?????????????????????????????????????????????????? | | ?????????????????????????????????????????????????? | | ?????????????????????????????????????????????????? | | ?????????????????????????????????????????????????? | | | | | +----------------------------------------------------+ Best States ------------- Heat Dissipation 31 Energy Generation 12 Energy Capacity 265 Matter Stores 300 Matter Capacity 300 Sight Range 16 Robot Scan Range 10 Terrain Scan Density 60 Evasion (%) 50 Item Schematics ----------------- None Robot Schematics ------------------ None Fabricated ------------ Nothing Alien Tech Used ----------------- None Achievements -------------- None Challenges ------------ None Game ------ Seed GravmagPointKatana Manual? 0 Play Time 00:16:29 Cumulative 3.4 hours Start 2020.01.06 @ 04:45:44 End 2020.01.06 @ 11:38:08 Sessions 1 Manual Loads 0 Difficulty Rogue Special Mode None Game No. 11 Rogue 11 Adventurer 0 Explorer 0 Win Type - Total 0 Types 0/0/0/0/0/0/0 Lore% 2 Gallery% 9 Achievement% 7 Wizard Run 0 Options --------- ASCII 0 Keyboard 0 Movement Numpad Keybinds 0 Fullscreen 1 Font 18/SmallcapsGlow Map View 76x50 Tactical HUD 0 Map Filters NONE Filters NONE Steam 1 RUN: 22936629-a80a-4280-80bf-58db0c096ba4